[Event "Live Chess"]
[Site "Chess.com"]
[Date "2023.05.20"]
[Round "-"]
[White "Conradical12"]
[Black "Salpingidis"]
[Result "0-1"]
[WhiteElo "1547"]
[BlackElo "2309"]
[TimeControl "300"]
[EndTime "11:10:46 PDT"]
[Termination "Salpingidis won by resignation"]

1. e4 {[%clk 0:04:59.2]} 1... e6 {[%clk 0:04:59.1]} 2. d4 {[%clk 0:04:57.7]}
2... d5 {[%clk 0:04:59]} 3. Nc3 {[%clk 0:04:54.7]} 3... dxe4 {[%clk 0:04:58.9]}
4. Nxe4 {[%clk 0:04:53.5]} 4... Nd7 {[%clk 0:04:58.8]} 5. Nf3 {[%clk 0:04:52]}
5... Ngf6 {[%clk 0:04:58.7]} 6. Ng3 {[%clk 0:04:50.1]} 6... Be7 {[%clk
0:04:58.6]} 7. Bd3 {[%clk 0:04:48.8]} 7... O-O {[%clk 0:04:58.5]} 8. c3 {[%clk
0:04:47.4]} 8... b6 {[%clk 0:04:58.2]} 9. Be3 {[%clk 0:04:44.6]} 9... Bb7 {[%clk
0:04:57.3]} 10. O-O {[%clk 0:04:42.3]} 10... c5 {[%clk 0:04:56.1]} 11. Qc2
{[%clk 0:04:28]} 11... cxd4 {[%clk 0:04:46.4]} 12. Bxd4 {[%clk 0:04:26.7]} 12...
h6 {[%clk 0:04:44]} 13. Bxf6 {[%clk 0:04:25.4]} 13... Bxf6 {[%clk 0:04:43.9]}
14. Rad1 {[%clk 0:04:22.8]} 14... Qc7 {[%clk 0:04:42]} 15. Nh5 {[%clk
0:04:13.3]} 15... Be7 {[%clk 0:04:39.7]} 16. Qd2 {[%clk 0:04:08.6]} 16... Nc5
{[%clk 0:04:34.1]} 17. Bc2 {[%clk 0:03:56.1]} 17... Rad8 {[%clk 0:04:12.3]} 18.
Qc1 {[%clk 0:03:54.1]} 18... Qc6 {[%clk 0:03:54.1]} 19. b4 {[%clk 0:03:48.9]}
19... Ne4 {[%clk 0:03:50.2]} 20. Nd4 {[%clk 0:03:34.1]} 20... Qd5 {[%clk
0:03:33.2]} 21. Bb3 {[%clk 0:03:15.7]} 21... Qxh5 {[%clk 0:03:27.7]} 22. f3
{[%clk 0:03:07.1]} 22... Nf6 {[%clk 0:03:22.4]} 23. Nxe6 {[%clk 0:02:58.7]}
23... fxe6 {[%clk 0:03:19.8]} 24. Bxe6+ {[%clk 0:02:56.7]} 24... Kh8 {[%clk
0:03:19.3]} 25. Rxd8 {[%clk 0:02:54.5]} 25... Rxd8 {[%clk 0:03:17.7]} 26. Qe3
{[%clk 0:02:53.7]} 26... Qg5 {[%clk 0:03:07.4]} 27. Qe2 {[%clk 0:02:43.5]} 27...
Rd2 {[%clk 0:03:04.1]} 28. f4 {[%clk 0:02:42.2]} 28... Rxe2 {[%clk 0:02:59.1]}
29. fxg5 {[%clk 0:02:40.2]} 29... Rxg2+ {[%clk 0:02:58.7]} 30. Kh1 {[%clk
0:02:39.1]} 30... Rg3+ {[%clk 0:02:56.5]} 0-1

[Event "Live Chess"]
[Site "Chess.com"]
[Date "2023.05.20"]
[Round "-"]
[White "Ayush_prahlad_Gupta"]
[Black "lucaskk818"]
[Result "0-1"]
[WhiteElo "1813"]
[BlackElo "1892"]
[TimeControl "300"]
[EndTime "11:10:49 PDT"]
[Termination "lucaskk818 won by checkmate"]

1. e4 {[%clk 0:04:55.9]} 1... c5 {[%clk 0:04:58.2]} 2. c4 {[%clk 0:04:53.2]}
2... d6 {[%clk 0:04:55.2]} 3. Nc3 {[%clk 0:04:53.1]} 3... Nf6 {[%clk 0:04:53.8]}
4. Nf3 {[%clk 0:04:52.2]} 4... Nc6 {[%clk 0:04:52.6]} 5. d3 {[%clk 0:04:52.1]}
5... g6 {[%clk 0:04:50.6]} 6. Bd2 {[%clk 0:04:51.9]} 6... Bg7 {[%clk 0:04:50.1]}
7. Qc1 {[%clk 0:04:51.8]} 7... O-O {[%clk 0:04:49.5]} 8. h4 {[%clk 0:04:51.5]}
8... h5 {[%clk 0:04:46]} 9. Ng5 {[%clk 0:04:47.7]} 9... a6 {[%clk 0:04:38.3]}
10. Be2 {[%clk 0:04:46.7]} 10... Rb8 {[%clk 0:04:35.3]} 11. f3 {[%clk
0:04:44.7]} 11... b5 {[%clk 0:04:31.6]} 12. g4 {[%clk 0:04:43.8]} 12... hxg4
{[%clk 0:04:30]} 13. fxg4 {[%clk 0:04:42.7]} 13... Bxg4 {[%clk 0:04:26.9]} 14.
Bxg4 {[%clk 0:04:41]} 14... Nxg4 {[%clk 0:04:26.8]} 15. h5 {[%clk 0:04:39.7]}
15... bxc4 {[%clk 0:03:54.9]} 16. Qd1 {[%clk 0:04:37]} 16... Qd7 {[%clk
0:03:41]} 17. hxg6 {[%clk 0:04:22.4]} 17... fxg6 {[%clk 0:03:40.9]} 18. Qe2
{[%clk 0:04:19.1]} 18... Rf2 {[%clk 0:03:18.5]} 19. Qd1 {[%clk 0:04:14]} 19...
Rxb2 {[%clk 0:03:02.7]} 20. Nf3 {[%clk 0:04:02.3]} 20... cxd3 {[%clk 0:02:29.1]}
21. Na4 {[%clk 0:03:52.1]} 21... Rbxd2 {[%clk 0:02:02.2]} 22. Nxd2 {[%clk
0:03:49.2]} 22... Re2+ {[%clk 0:01:57.7]} 23. Kf1 {[%clk 0:03:43.6]} 23... Ne3+
{[%clk 0:01:56.6]} 24. Kg1 {[%clk 0:03:41]} 24... Rg2# {[%clk 0:01:54.7]} 0-1

[Event "Live Chess"]
[Site "Chess.com"]
[Date "2023.05.20"]
[Round "-"]
[White "aliciabutteriss"]
[Black "Delacorta"]
[Result "0-1"]
[WhiteElo "542"]
[BlackElo "1423"]
[TimeControl "300"]
[EndTime "11:11:04 PDT"]
[Termination "Delacorta won by resignation"]

1. e4 {[%clk 0:04:58.9]} 1... e6 {[%clk 0:04:59.2]} 2. d4 {[%clk 0:04:57.1]}
2... d5 {[%clk 0:04:58.4]} 3. Nc3 {[%clk 0:04:49.5]} 3... dxe4 {[%clk
0:04:54.7]} 4. Nxe4 {[%clk 0:04:45.7]} 4... Bd7 {[%clk 0:04:53.9]} 5. Nf3 {[%clk
0:04:38.7]} 5... Bc6 {[%clk 0:04:52.9]} 6. Qd3 {[%clk 0:04:31.7]} 6... Nd7
{[%clk 0:04:44.4]} 7. Bf4 {[%clk 0:04:24.4]} 7... Ngf6 {[%clk 0:04:38.2]} 8.
Nxf6+ {[%clk 0:04:15.4]} 8... Nxf6 {[%clk 0:04:35]} 9. O-O-O {[%clk 0:04:10.2]}
9... Ne4 {[%clk 0:04:17.8]} 10. Rg1 {[%clk 0:03:49.5]} 10... Nxf2 {[%clk
0:04:14.1]} 11. Qe2 {[%clk 0:03:41.8]} 11... Nxd1 {[%clk 0:04:12.1]} 12. Qxd1
{[%clk 0:03:40.7]} 12... Bd6 {[%clk 0:03:53.2]} 13. Bxd6 {[%clk 0:03:26.9]}
13... Qxd6 {[%clk 0:03:53.1]} 14. Kb1 {[%clk 0:03:23]} 14... O-O-O {[%clk
0:03:47.8]} 15. Bc4 {[%clk 0:03:07.5]} 15... f6 {[%clk 0:03:32.6]} 16. Re1
{[%clk 0:03:03.7]} 16... Bd5 {[%clk 0:03:30.1]} 17. Bxd5 {[%clk 0:02:56.2]}
17... Qxd5 {[%clk 0:03:22.2]} 18. Qd2 {[%clk 0:02:44.5]} 18... e5 {[%clk
0:03:01.1]} 19. c3 {[%clk 0:02:34]} 19... exd4 {[%clk 0:02:50.7]} 20. Nxd4
{[%clk 0:02:26.5]} 20... c5 {[%clk 0:02:42.3]} 21. Qf4 {[%clk 0:02:06.5]} 21...
cxd4 {[%clk 0:02:35.9]} 22. Qf5+ {[%clk 0:02:05.1]} 22... Qxf5+ {[%clk
0:02:34.1]} 0-1

[Event "Live Chess"]
[Site "Chess.com"]
[Date "2023.05.20"]
[Round "-"]
[White "Albul"]
[Black "Brooms1989"]
[Result "1-0"]
[WhiteElo "2164"]
[BlackElo "1008"]
[TimeControl "300"]
[EndTime "11:11:08 PDT"]
[Termination "Albul won by resignation"]

1. e4 {[%clk 0:04:58.3]} 1... e5 {[%clk 0:04:57.9]} 2. Bc4 {[%clk 0:04:53.4]}
2... Nf6 {[%clk 0:04:56.3]} 3. Qe2 {[%clk 0:04:51.9]} 3... Nc6 {[%clk
0:04:48.5]} 4. Nf3 {[%clk 0:04:49.8]} 4... Bc5 {[%clk 0:04:38.7]} 5. d3 {[%clk
0:04:47.9]} 5... h6 {[%clk 0:04:34.2]} 6. c3 {[%clk 0:04:44.2]} 6... Bb6 {[%clk
0:04:29.3]} 7. Nbd2 {[%clk 0:04:41.7]} 7... O-O {[%clk 0:04:26.9]} 8. Nf1 {[%clk
0:04:39.7]} 8... d6 {[%clk 0:04:23.1]} 9. h3 {[%clk 0:04:37.7]} 9... d5 {[%clk
0:04:12.7]} 10. Bb5 {[%clk 0:04:34.2]} 10... Re8 {[%clk 0:03:59.9]} 11. g4
{[%clk 0:04:32.1]} 11... a6 {[%clk 0:03:58.3]} 12. Ba4 {[%clk 0:04:30.5]} 12...
dxe4 {[%clk 0:03:56.4]} 13. dxe4 {[%clk 0:04:29.5]} 13... Bd7 {[%clk 0:03:41.9]}
14. Ng3 {[%clk 0:04:27.5]} 14... g6 {[%clk 0:03:38.5]} 15. Bxh6 {[%clk
0:04:23.7]} 15... Be6 {[%clk 0:03:09.5]} 16. Bg5 {[%clk 0:04:20.6]} 16... Qe7
{[%clk 0:02:44.1]} 17. O-O {[%clk 0:04:04.2]} 17... Na5 {[%clk 0:02:30]} 18.
Bxe8 {[%clk 0:04:00]} 18... Bc4 {[%clk 0:02:28.8]} 19. Bxf7+ {[%clk 0:03:57.4]}
19... Kxf7 {[%clk 0:02:27]} 20. Qc2 {[%clk 0:03:40.3]} 20... Bxf1 {[%clk
0:02:23.8]} 21. Rxf1 {[%clk 0:03:37.4]} 21... Rd8 {[%clk 0:02:21.8]} 22. Rd1
{[%clk 0:03:22.3]} 22... Rxd1+ {[%clk 0:02:11.4]} 23. Qxd1 {[%clk 0:03:21.1]}
23... Qc5 {[%clk 0:02:10.7]} 24. Be3 {[%clk 0:03:14.4]} 24... Qc4 {[%clk
0:01:59.6]} 25. Nxe5+ {[%clk 0:03:12]} 1-0

[Event "Live Chess"]
[Site "Chess.com"]
[Date "2023.05.20"]
[Round "-"]
[White "DarthCalzone"]
[Black "Andysav3"]
[Result "0-1"]
[WhiteElo "938"]
[BlackElo "1693"]
[TimeControl "300"]
[EndTime "11:11:11 PDT"]
[Termination "Andysav3 won by resignation"]

1. e4 {[%clk 0:04:57]} 1... Nf6 {[%clk 0:04:58.4]} 2. e5 {[%clk 0:04:55.7]} 2...
Nd5 {[%clk 0:04:57.1]} 3. d4 {[%clk 0:04:54.2]} 3... d6 {[%clk 0:04:55.9]} 4.
exd6 {[%clk 0:04:51.5]} 4... cxd6 {[%clk 0:04:54.6]} 5. Nf3 {[%clk 0:04:49.9]}
5... Bg4 {[%clk 0:04:52.5]} 6. Be2 {[%clk 0:04:46.8]} 6... e6 {[%clk 0:04:49.9]}
7. h3 {[%clk 0:04:45.3]} 7... Bh5 {[%clk 0:04:48.3]} 8. O-O {[%clk 0:04:43.7]}
8... Be7 {[%clk 0:04:46.8]} 9. Nh2 {[%clk 0:04:38.7]} 9... Bg6 {[%clk
0:04:40.4]} 10. c3 {[%clk 0:04:35.4]} 10... O-O {[%clk 0:04:36]} 11. Bd3 {[%clk
0:04:34.1]} 11... Nc6 {[%clk 0:04:30.4]} 12. Bxg6 {[%clk 0:04:32.5]} 12... hxg6
{[%clk 0:04:28.7]} 13. Na3 {[%clk 0:04:21.5]} 13... e5 {[%clk 0:04:08]} 0-1

[Event "Live Chess"]
[Site "Chess.com"]
[Date "2023.05.20"]
[Round "-"]
[White "Geomorph"]
[Black "garyjc"]
[Result "1-0"]
[WhiteElo "1219"]
[BlackElo "1037"]
[TimeControl "300"]
[EndTime "11:11:13 PDT"]
[Termination "Geomorph won by resignation"]

1. e4 {[%clk 0:04:58.5]} 1... c5 {[%clk 0:04:58.3]} 2. Nf3 {[%clk 0:04:57.3]}
2... d6 {[%clk 0:04:55.1]} 3. d4 {[%clk 0:04:55.1]} 3... cxd4 {[%clk 0:04:53.4]}
4. Qxd4 {[%clk 0:04:54.8]} 4... Nc6 {[%clk 0:04:52.5]} 5. Bb5 {[%clk 0:04:53.9]}
5... Bd7 {[%clk 0:04:50.1]} 6. Bxc6 {[%clk 0:04:52.8]} 6... Bxc6 {[%clk
0:04:46.8]} 7. Nc3 {[%clk 0:04:52.5]} 7... Nf6 {[%clk 0:04:44]} 8. Bg5 {[%clk
0:04:50.6]} 8... Qb6 {[%clk 0:04:09.7]} 9. Bxf6 {[%clk 0:04:20.5]} 9... Qxd4
{[%clk 0:03:50.9]} 10. Bxd4 {[%clk 0:04:18.8]} 10... e6 {[%clk 0:03:43.8]} 11.
O-O-O {[%clk 0:04:16]} 11... Rg8 {[%clk 0:03:09.6]} 12. Rhe1 {[%clk 0:04:10.9]}
12... O-O-O {[%clk 0:03:05]} 13. Bxa7 {[%clk 0:04:07.5]} 13... Rd7 {[%clk
0:02:54.9]} 14. Nd4 {[%clk 0:03:52.6]} 14... d5 {[%clk 0:02:50.8]} 15. Nxc6
{[%clk 0:03:45.5]} 15... bxc6 {[%clk 0:02:49.2]} 16. Be3 {[%clk 0:03:35.4]}
16... Bd6 {[%clk 0:02:34.7]} 17. exd5 {[%clk 0:03:32.5]} 17... cxd5 {[%clk
0:02:33.1]} 18. h3 {[%clk 0:03:30.8]} 18... Bb4 {[%clk 0:02:25.8]} 19. Bd4
{[%clk 0:03:25.2]} 19... Bxc3 {[%clk 0:02:23.9]} 20. Bxc3 {[%clk 0:03:23.5]}
20... Kd8 {[%clk 0:02:21.1]} 21. a4 {[%clk 0:03:19.7]} 21... Ke7 {[%clk
0:02:19.6]} 22. a5 {[%clk 0:03:17.6]} 22... Ra8 {[%clk 0:02:15.9]} 23. b4 {[%clk
0:03:16.5]} 23... Rc7 {[%clk 0:02:12.9]} 24. Kb2 {[%clk 0:03:14.4]} 24... Kd6
{[%clk 0:02:06.7]} 25. Bxg7 {[%clk 0:03:07.6]} 25... Rac8 {[%clk 0:02:00.9]} 26.
Be5+ {[%clk 0:03:06.1]} 26... Kd7 {[%clk 0:01:58.3]} 27. Bxc7 {[%clk 0:03:05.2]}
27... Kxc7 {[%clk 0:01:58.2]} 1-0

[Event "Live Chess"]
[Site "Chess.com"]
[Date "2023.05.20"]
[Round "-"]
[White "MarkLim1"]
[Black "JanMur7"]
[Result "0-1"]
[WhiteElo "1619"]
[BlackElo "1975"]
[TimeControl "300"]
[EndTime "11:11:13 PDT"]
[Termination "JanMur7 won by resignation"]

1. d4 {[%clk 0:04:58.2]} 1... Nf6 {[%clk 0:04:58.8]} 2. Nf3 {[%clk 0:04:57.5]}
2... e6 {[%clk 0:04:57.9]} 3. e3 {[%clk 0:04:56.5]} 3... c5 {[%clk 0:04:57]} 4.
Bd3 {[%clk 0:04:54.4]} 4... b6 {[%clk 0:04:55.4]} 5. c4 {[%clk 0:04:52.9]} 5...
Bb7 {[%clk 0:04:54.4]} 6. O-O {[%clk 0:04:51.8]} 6... Be7 {[%clk 0:04:53.3]} 7.
Nc3 {[%clk 0:04:50.9]} 7... O-O {[%clk 0:04:52.5]} 8. d5 {[%clk 0:04:50.2]} 8...
d6 {[%clk 0:04:50.7]} 9. e4 {[%clk 0:04:49]} 9... e5 {[%clk 0:04:49.6]} 10. Ng5
{[%clk 0:04:35.7]} 10... Ne8 {[%clk 0:04:44.5]} 11. Qh5 {[%clk 0:04:30.6]} 11...
h6 {[%clk 0:04:41.1]} 12. Nf3 {[%clk 0:04:26.7]} 12... Nd7 {[%clk 0:04:39.4]}
13. Bxh6 {[%clk 0:04:24.3]} 13... gxh6 {[%clk 0:04:38.1]} 14. Qxh6 {[%clk
0:04:23.5]} 14... Ng7 {[%clk 0:04:36.7]} 15. Nb5 {[%clk 0:04:14.3]} 15... Nf6
{[%clk 0:04:26.8]} 16. Nd2 {[%clk 0:04:11.5]} 16... a6 {[%clk 0:04:23.1]} 17.
Nc3 {[%clk 0:04:10.4]} 17... Ng4 {[%clk 0:04:20.4]} 18. Qh3 {[%clk 0:04:04.8]}
18... Bc8 {[%clk 0:04:18.8]} 19. f4 {[%clk 0:03:56.5]} 19... exf4 {[%clk
0:04:07.9]} 20. Rxf4 {[%clk 0:03:53.6]} 20... Ne5 {[%clk 0:04:05.5]} 21. Qg3
{[%clk 0:03:46.7]} 21... Bg5 {[%clk 0:04:04.1]} 22. Rf2 {[%clk 0:03:39.7]} 22...
Bh4 {[%clk 0:04:02.7]} 23. Qe3 {[%clk 0:03:34.9]} 23... Bxf2+ {[%clk 0:04:00.9]}
24. Kxf2 {[%clk 0:03:34.3]} 24... Ng4+ {[%clk 0:03:59.6]} 0-1

[Event "Live Chess"]
[Site "Chess.com"]
[Date "2023.05.20"]
[Round "-"]
[White "zdanevych"]
[Black "LL220284LL"]
[Result "0-1"]
[WhiteElo "1545"]
[BlackElo "2386"]
[TimeControl "300"]
[EndTime "11:11:14 PDT"]
[Termination "LL220284LL won by resignation"]

1. d4 {[%clk 0:04:58.4]} 1... c6 {[%clk 0:04:58.6]} 2. c4 {[%clk 0:04:57.7]}
2... d6 {[%clk 0:04:57.1]} 3. e4 {[%clk 0:04:57]} 3... Nf6 {[%clk 0:04:55.4]} 4.
Nc3 {[%clk 0:04:56.1]} 4... e5 {[%clk 0:04:53.4]} 5. d5 {[%clk 0:04:54.8]} 5...
Be7 {[%clk 0:04:51.8]} 6. h3 {[%clk 0:04:52.6]} 6... O-O {[%clk 0:04:51]} 7. Nf3
{[%clk 0:04:51.6]} 7... Ne8 {[%clk 0:04:46.8]} 8. Bd3 {[%clk 0:04:49.6]} 8... f5
{[%clk 0:04:45.4]} 9. exf5 {[%clk 0:04:48.8]} 9... Bxf5 {[%clk 0:04:45.3]} 10.
Bxf5 {[%clk 0:04:47.4]} 10... Rxf5 {[%clk 0:04:45.2]} 11. Ne4 {[%clk 0:04:40.3]}
11... Nd7 {[%clk 0:04:39.7]} 12. O-O {[%clk 0:04:37.8]} 12... Rf8 {[%clk
0:04:34.5]} 13. Be3 {[%clk 0:04:27.4]} 13... h6 {[%clk 0:04:30.8]} 14. Qb3
{[%clk 0:04:21.3]} 14... Qc7 {[%clk 0:04:20]} 15. Qd3 {[%clk 0:04:04.5]} 15...
Nef6 {[%clk 0:04:15.7]} 16. b3 {[%clk 0:03:53.4]} 16... Nxe4 {[%clk 0:04:13.2]}
17. Qxe4 {[%clk 0:03:53.3]} 17... Nf6 {[%clk 0:04:12.6]} 18. Qc2 {[%clk
0:03:38.3]} 18... cxd5 {[%clk 0:04:10.2]} 19. Rac1 {[%clk 0:03:27.4]} 19... d4
{[%clk 0:04:07]} 20. Bd2 {[%clk 0:03:22.1]} 20... Rac8 {[%clk 0:04:06.4]} 21.
Rfd1 {[%clk 0:03:06.7]} 21... d5 {[%clk 0:04:02.2]} 22. cxd5 {[%clk 0:03:00.6]}
22... Qxc2 {[%clk 0:03:59.4]} 0-1

[Event "Live Chess"]
[Site "Chess.com"]
[Date "2023.05.20"]
[Round "-"]
[White "Missedidea"]
[Black "stevegleds"]
[Result "1-0"]
[WhiteElo "1612"]
[BlackElo "614"]
[TimeControl "300"]
[EndTime "11:11:39 PDT"]
[Termination "Missedidea won by resignation"]

1. d4 {[%clk 0:04:58.8]} 1... d5 {[%clk 0:04:58.3]} 2. c4 {[%clk 0:04:57.1]}
2... dxc4 {[%clk 0:04:55.8]} 3. e3 {[%clk 0:04:54.7]} 3... e6 {[%clk 0:04:52.9]}
4. Bxc4 {[%clk 0:04:53.4]} 4... Nf6 {[%clk 0:04:45.5]} 5. Nf3 {[%clk 0:04:52.2]}
5... Nc6 {[%clk 0:04:41.2]} 6. O-O {[%clk 0:04:50.5]} 6... Ne4 {[%clk
0:04:37.2]} 7. Nc3 {[%clk 0:04:46.6]} 7... Nxc3 {[%clk 0:04:30.2]} 8. bxc3
{[%clk 0:04:43.7]} 8... Bd6 {[%clk 0:04:19.6]} 9. e4 {[%clk 0:04:42.2]} 9... e5
{[%clk 0:04:13.4]} 10. Be3 {[%clk 0:04:34.8]} 10... O-O {[%clk 0:04:05.8]} 11.
Qc2 {[%clk 0:04:23.4]} 11... Bg4 {[%clk 0:03:52.3]} 12. Be2 {[%clk 0:04:17.7]}
12... Bxf3 {[%clk 0:03:49.8]} 13. Bxf3 {[%clk 0:04:15.9]} 13... exd4 {[%clk
0:03:39]} 14. cxd4 {[%clk 0:04:13.8]} 14... Qd7 {[%clk 0:03:20.3]} 15. e5 {[%clk
0:04:07.9]} 15... Bb4 {[%clk 0:03:11.5]} 16. Rfd1 {[%clk 0:04:01.3]} 16... Na5
{[%clk 0:02:52.7]} 17. Be4 {[%clk 0:03:48.6]} 17... g6 {[%clk 0:02:49.8]} 18. d5
{[%clk 0:03:35.9]} 18... Rfe8 {[%clk 0:02:29.9]} 19. Bd4 {[%clk 0:03:19.5]}
19... Qb5 {[%clk 0:02:22.2]} 20. Rab1 {[%clk 0:03:08]} 20... b6 {[%clk
0:02:13.4]} 21. a3 {[%clk 0:02:58.3]} 21... Qc4 {[%clk 0:01:49.5]} 22. axb4
{[%clk 0:02:52]} 22... Qxc2 {[%clk 0:01:45.6]} 23. Bxc2 {[%clk 0:02:49.9]} 23...
Nc4 {[%clk 0:01:43.5]} 24. f4 {[%clk 0:02:47.8]} 24... f6 {[%clk 0:01:36.5]} 25.
e6 {[%clk 0:02:43.6]} 25... f5 {[%clk 0:01:31.6]} 26. Bb3 {[%clk 0:02:37.6]}
26... Na3 {[%clk 0:01:23.5]} 27. Rb2 {[%clk 0:02:27.7]} 27... Rad8 {[%clk
0:01:19]} 28. Bf6 {[%clk 0:02:22.4]} 28... Rd6 {[%clk 0:01:15]} 29. Be5 {[%clk
0:02:20.2]} 29... c5 {[%clk 0:01:07.5]} 30. Bxd6 {[%clk 0:02:14.6]} 1-0

[Event "Live Chess"]
[Site "Chess.com"]
[Date "2023.05.20"]
[Round "-"]
[White "Pablo_dmp"]
[Black "wadsy27"]
[Result "0-1"]
[WhiteElo "1864"]
[BlackElo "2588"]
[TimeControl "300"]
[EndTime "11:11:41 PDT"]
[Termination "wadsy27 won by resignation"]

1. e4 {[%clk 0:04:59.6]} 1... c5 {[%clk 0:04:58.2]} 2. a3 {[%clk 0:04:57.2]}
2... d5 {[%clk 0:04:55]} 3. exd5 {[%clk 0:04:55.4]} 3... Qxd5 {[%clk 0:04:54.9]}
4. Nc3 {[%clk 0:04:54.4]} 4... Qd8 {[%clk 0:04:52.5]} 5. Nf3 {[%clk 0:04:52.8]}
5... Nf6 {[%clk 0:04:51.4]} 6. Bc4 {[%clk 0:04:49.7]} 6... e6 {[%clk 0:04:49.3]}
7. O-O {[%clk 0:04:46.6]} 7... Be7 {[%clk 0:04:48]} 8. d3 {[%clk 0:04:45.7]}
8... O-O {[%clk 0:04:46.6]} 9. Bg5 {[%clk 0:04:43.3]} 9... b6 {[%clk 0:04:42.7]}
10. Qe2 {[%clk 0:04:40.7]} 10... Bb7 {[%clk 0:04:38.7]} 11. Rfe1 {[%clk
0:04:07.2]} 11... h6 {[%clk 0:04:31.8]} 12. Bf4 {[%clk 0:04:03.8]} 12... Nc6
{[%clk 0:04:25.3]} 13. Ne5 {[%clk 0:03:58]} 13... Nd4 {[%clk 0:04:02.5]} 14. Qd2
{[%clk 0:03:34.1]} 14... Kh7 {[%clk 0:03:54.2]} 15. Re3 {[%clk 0:03:13.9]} 15...
Nh5 {[%clk 0:03:36.1]} 16. Rh3 {[%clk 0:03:04]} 16... Nxf4 {[%clk 0:03:33.5]}
17. Qxf4 {[%clk 0:03:00.1]} 17... Bg5 {[%clk 0:03:30.3]} 18. Qg4 {[%clk
0:02:41.1]} 18... f6 {[%clk 0:03:06.5]} 19. Nf3 {[%clk 0:02:27.7]} 19... Nxf3+
{[%clk 0:02:59.8]} 20. gxf3 {[%clk 0:02:25.5]} 20... f5 {[%clk 0:02:58]} 21. Qg3
{[%clk 0:02:09.3]} 21... Rf6 {[%clk 0:02:55.6]} 22. Qxg5 {[%clk 0:01:37.6]}
22... Rg6 {[%clk 0:02:54]} 23. Qxg6+ {[%clk 0:01:37]} 23... Kxg6 {[%clk
0:02:53.9]} 24. Bxe6 {[%clk 0:01:34.2]} 24... f4 {[%clk 0:02:46]} 25. Bg4 {[%clk
0:01:16.5]} 25... Qe7 {[%clk 0:02:35.7]} 26. Ne4 {[%clk 0:01:09.4]} 26... Bxe4
{[%clk 0:02:34.4]} 27. fxe4 {[%clk 0:01:09.1]} 27... Rf8 {[%clk 0:02:26.5]} 28.
f3 {[%clk 0:01:05.4]} 28... Qe5 {[%clk 0:02:23.4]} 29. c3 {[%clk 0:00:56.5]}
29... Kh7 {[%clk 0:02:15.5]} 30. Rh5 {[%clk 0:00:53.2]} 30... Qe7 {[%clk
0:02:06.9]} 31. Rf5 {[%clk 0:00:47.3]} 31... Rxf5 {[%clk 0:02:03.9]} 32. Bxf5+
{[%clk 0:00:47.2]} 32... g6 {[%clk 0:02:02.9]} 33. Bh3 {[%clk 0:00:43.4]} 33...
Qg5+ {[%clk 0:01:52.1]} 34. Kf2 {[%clk 0:00:41.2]} 34... Qh4+ {[%clk 0:01:51.2]}
35. Kg2 {[%clk 0:00:39.7]} 35... Kg7 {[%clk 0:01:45.7]} 36. b4 {[%clk
0:00:35.7]} 36... h5 {[%clk 0:01:44.2]} 37. Be6 {[%clk 0:00:26.4]} 37... Kf6
{[%clk 0:01:42.4]} 38. Bd5 {[%clk 0:00:19.9]} 38... g5 {[%clk 0:01:41.4]} 39.
bxc5 {[%clk 0:00:16.3]} 39... g4 {[%clk 0:01:38.1]} 40. Rb1 {[%clk 0:00:16.2]}
40... Qh3+ {[%clk 0:01:36.5]} 41. Kf2 {[%clk 0:00:15.1]} 41... Qxh2+ {[%clk
0:01:35.6]} 42. Ke1 {[%clk 0:00:11.7]} 42... Qh1+ {[%clk 0:01:35.5]} 43. Kd2
{[%clk 0:00:11.6]} 43... Qxb1 {[%clk 0:01:34.8]} 0-1